bitfinex/quotes_SOLUSD_20251006
["timestamp","ask_amount","ask_price","bid_price","bid_amount"]
[1759752601124,5.00393951,233.43,233.37,30.65]
[1759752601517,0.72,233.42,233.37,30.65]
[1759752601835,4.28393951,233.43,233.33,18.57775088]
[1759752601836,0.72,233.41,233.35,0.71]
[1759752602039,0.72,233.41,233.36,29.94]
[1759752602241,5.00462438,233.4,233.36,29.94]
[1759752602447,5.00462438,233.4,233.36,30.65]
[1759752602938,0.72,233.39,233.36,29.94]
[1759752603133,0.72,233.41,233.36,29.94]
[1759752603340,0.72,233.41,233.37,0.71]
[1759752603514,4.28412304,233.42,233.37,0.71]
[1759752603710,0.72,233.41,233.37,0.71]
[1759752604338,4.28449014,233.4,233.37,0.71]
[1759752605040,0.72,233.41,233.37,0.71]
[1759752606256,5.00431422,233.41,233.37,0.71]
[1759752606418,4.28431422,233.41,233.37,0.71]
[1759752606622,20.8,233.44,233.37,0.71]
[1759752606818,21.52,233.44,233.37,0.71]
[1759752607521,21.52,233.44,233.37,13.57146063]
[1759752608031,4.28357249,233.45,233.38,0.71]
[1759752608223,5.00357249,233.45,233.38,0.71]
[1759752609032,15.71250373,233.45,233.38,0.71]
[1759752611431,5.00357249,233.45,233.38,4.99480325]
[1759752611634,5.00357249,233.45,233.39,0.71]
[1759752611829,5.00357249,233.45,233.39,13.57035794]
[1759752612044,0.72,233.44,233.39,13.57035794]
[1759752612247,0.72,233.43,233.38,4.28483079]
[1759752612431,0.72,233.43,233.38,12.86035794]
[1759752612631,0.72,233.43,233.39,0.71]
[1759752612831,0.72,233.42,233.34,4.28551679]
[1759752613037,0.72,233.41,233.33,0.71]
[1759752613229,0.72,233.41,233.35,12.86201204]
[1759752613543,2.64374162,233.38,233.31,0.71]
[1759752613728,0.72,233.4,233.32,30.65]
[1759752613936,0.72,233.39,233.33,0.71]
[1759752614153,4.28485731,233.38,233.33,0.71]
[1759752614454,0.72,233.37,233.32,29.94]
[1759752614667,0.72,233.36,233.32,29.94]
[1759752614827,0.72,233.36,233.32,30.65]
[1759752615027,4.28485731,233.38,233.32,30.65]
[1759752615255,5.00485731,233.38,233.32,30.65]
[1759752616046,4.28468587,233.39,233.33,0.71]
[1759752616375,21.52,233.44,233.33,15.71005013]
[1759752616668,21.52,233.44,233.34,0.71]
[1759752617454,21.52,233.44,233.35,25.87540385]
[1759752617455,25.80389124,233.44,233.35,25.87540385]
[1759752617759,0.72,233.44,233.36,0.71]
[1759752617942,0.72,233.44,233.37,29.94]
[1759752618140,0.72,233.44,233.38,0.72]
[1759752618337,5.00377583,233.44,233.38,0.72]
[1759752619455,5.00375906,233.44,233.38,0.72]
[1759752620457,4.28338901,233.46,233.38,5.00483255]
[1759752620753,4.28338901,233.46,233.39,0.72]
[1759752621167,4.97338901,233.46,233.39,0.72]
[1759752622134,4.28321486,233.47,233.4,4.28449014]
[1759752622336,0.69,233.49,233.41,0.72]
[1759752622555,0.69,233.49,233.42,29.94]
[1759752622741,21.49,233.49,233.42,30.66]
[1759752622941,21.49,233.49,233.42,43.51815314]
[1759752623155,25.77283866,233.49,233.42,43.51815314]
[1759752623365,25.77283866,233.49,233.43,0.72]
[1759752623872,36.47993532,233.49,233.42,29.94]
[1759752624033,4.28320555,233.47,233.42,29.94]
[1759752624236,4.28320555,233.47,233.42,30.66]
[1759752624440,0.69,233.46,233.42,29.94]
[1759752624940,0.69,233.46,233.42,30.66]
[1759752625156,4.9730221,233.48,233.42,30.66]
[1759752626161,4.9730221,233.48,233.42,43.51815314]
[1759752628267,0.69,233.47,233.42,43.51815314]
[1759752628451,4.2830221,233.48,233.42,43.51815314]
[1759752628652,0.69,233.47,233.42,30.66]
[1759752628858,0.69,233.47,233.43,0.72]
[1759752629350,0.1,233.58,233.44,0.72]
[1759752629665,0.1,233.58,233.37,3.58361475]
[1759752629666,2.64374162,233.49,233.45,29.92]
[1759752629970,33.65815314,233.54,233.44,29.92]
[1759752629971,0.69,233.48,233.44,29.92]
[1759752630156,3.33374162,233.51,233.45,0.72]
[1759752631040,0.69,233.51,233.45,0.72]
[1759752631248,4.28265524,233.5,233.45,0.72]
[1759752631464,4.97265524,233.5,233.45,0.72]
[1759752631664,4.28265524,233.5,233.45,0.72]
[1759752631852,0.69,233.49,233.45,0.72]
[1759752632550,4.28265524,233.5,233.44,29.92]
[1759752632766,4.28265524,233.5,233.46,0.72]
[1759752632947,4.97265524,233.5,233.46,0.72]
[1759752633446,12.85705102,233.55,233.45,12.85705102]
[1759752633647,21.49,233.52,233.46,0.72]
[1759752634246,21.49,233.52,233.44,29.92]
[1759752634562,21.49,233.52,233.45,12.85650003]
[1759752634563,0.69,233.51,233.45,12.85650003]
[1759752634747,0.7,233.5,233.45,29.92]
[1759752634944,0.7,233.49,233.45,29.92]
[1759752635139,0.7,233.49,233.45,30.6]
[1759752635347,4.28265524,233.5,233.45,30.6]
[1759752635546,4.98265524,233.5,233.45,30.6]
[1759752635773,4.98265524,233.5,233.46,0.68]
[1759752636654,4.98265524,233.5,233.45,29.92]
[1759752636970,4.98265524,233.5,233.45,30.6]
[1759752637150,4.28265524,233.5,233.46,0.68]
[1759752637466,4.28265524,233.5,233.47,0.68]
[1759752638155,4.28265524,233.5,233.45,29.92]
[1759752638357,4.28265524,233.5,233.47,0.68]
[1759752638675,4.28247184,233.51,233.47,0.68]
[1759752638978,4.98247184,233.51,233.47,0.68]
[1759752639146,0.7,233.5,233.47,29.92]
[1759752639559,14.98865144,233.51,233.47,29.92]
[1759752639847,15.68865144,233.51,233.47,29.92]
[1759752640485,0.7,233.5,233.47,29.92]
[1759752640769,4.28283866,233.49,233.47,29.92]
[1759752642170,14.98865144,233.51,233.47,29.92]
[1759752642369,14.98865144,233.51,233.47,30.6]
[1759752642673,14.98865144,233.51,233.48,0.68]
[1759752643055,0.7,233.5,233.47,29.92]
[1759752643787,14.98865144,233.51,233.47,29.92]
[1759752643955,14.98865144,233.51,233.47,30.6]
[1759752644274,15.68865144,233.51,233.47,30.6]
[1759752644475,4.28247184,233.51,233.48,0.68]
[1759752645964,20.8,233.52,233.47,29.92]
[1759752645965,14.98800958,233.52,233.47,29.92]
[1759752646284,0.7,233.51,233.47,29.92]
[1759752646454,0.7,233.51,233.45,13.53650003]
[1759752646655,0.7,233.51,233.47,29.92]
[1759752647052,4.28265524,233.5,233.47,30.6]
[1759752647263,4.28265524,233.5,233.47,0.68]
[1759752647463,4.28265524,233.5,233.47,30.6]
[1759752647777,4.28265524,233.5,233.48,0.68]
[1759752648373,4.28265524,233.5,233.46,0.68]
[1759752648584,5.00265524,233.5,233.46,30.6]
[1759752649075,4.2830221,233.48,233.45,29.92]
[1759752649253,5.0030221,233.48,233.45,29.92]
[1759752649654,4.2830221,233.48,233.45,29.92]
[1759752650162,14.98993532,233.49,233.45,29.92]
[1759752650453,0.72,233.48,233.42,12.85815314]
[1759752650659,0.72,233.48,233.38,20.8]
[1759752650660,3.36374162,233.47,233.4,0.68]
[1759752650867,2.64374162,233.45,233.39,29.92]
[1759752651065,0.72,233.44,233.39,29.92]
[1759752651270,0.72,233.43,233.38,0.68]
[1759752651474,0.72,233.43,233.39,29.92]
[1759752652081,0.72,233.43,233.39,30.6]
[1759752652390,4.28412304,233.42,233.39,30.6]
[1759752653084,0.72,233.43,233.39,30.6]
[1759752653267,21.52,233.46,233.4,0.68]
[1759752653578,25.80340756,233.46,233.4,0.68]
[1759752654082,36.5118801,233.46,233.4,0.68]
[1759752654455,36.5118801,233.46,233.39,29.92]
[1759752654456,39.15562172,233.46,233.39,29.92]
[1759752654657,0.72,233.45,233.39,29.92]
[1759752655989,0.72,233.45,233.39,30.6]
[1759752656479,4.28340756,233.46,233.4,0.68]
[1759752656664,4.2830221,233.48,233.4,0.68]
[1759752657060,4.2830221,233.48,233.4,13.53870427]
[1759752657377,4.2830221,233.48,233.41,0.68]
[1759752659165,4.2830221,233.48,233.41,13.53815314]
[1759752659355,4.2830221,233.48,233.42,0.68]
[1759752661887,5.0030221,233.48,233.42,0.68]
[1759752662666,5.0030221,233.48,233.42,30.6]
[1759752662979,4.2830221,233.48,233.42,30.6]
[1759752663288,4.28338901,233.46,233.42,30.6]
[1759752663583,4.28338901,233.46,233.43,0.68]
[1759752665290,4.28320555,233.47,233.43,0.68]
[1759752666773,0.72,233.46,233.42,29.92]
[1759752667070,0.72,233.45,233.42,29.92]
[1759752667777,0.72,233.45,233.4,0.68]
[1759752667985,0.72,233.44,233.37,0.68]
[1759752668176,0.72,233.44,233.36,0.68]
[1759752668366,4.28302439,233.48,233.37,29.92]
[1759752668565,4.28302439,233.48,233.39,4.28467372]
[1759752668566,0.72,233.48,233.39,4.28467372]
[1759752668863,0.72,233.5,233.41,20.8]
[1759752669067,20.8,233.52,233.42,30.6]
[1759752669302,0.72,233.51,233.41,20.8]
[1759752669592,0.72,233.5,233.42,29.92]
[1759752669770,0.72,233.49,233.42,30.6]
[1759752669968,0.72,233.49,233.43,0.68]
[1759752670378,4.2830221,233.48,233.43,0.68]
[1759752670571,4.2830221,233.48,233.44,0.68]
[1759752670791,5.0030221,233.48,233.44,0.68]
[1759752670986,0.72,233.47,233.41,0.68]
[1759752671314,1.69023903,233.45,233.38,30.6]
[1759752671604,0.72,233.44,233.38,29.92]
[1759752671809,0.72,233.43,233.36,0.68]
[1759752671972,1.69023903,233.42,233.34,0.68]
[1759752672296,0.72,233.41,233.34,30.6]
[1759752672485,4.28449014,233.4,233.34,30.6]
[1759752673990,5.00449014,233.4,233.34,30.6]
[1759752674392,4.28449014,233.4,233.34,29.92]
[1759752674703,4.28449014,233.4,233.35,0.68]
[1759752675090,4.28449014,233.4,233.36,0.68]
[1759752675291,4.28449014,233.4,233.34,29.92]
[1759752675597,4.28449014,233.4,233.36,0.68]
[1759752676101,4.28430658,233.41,233.36,0.68]
[1759752676299,5.00430658,233.41,233.36,0.68]
[1759752676688,14.99507304,233.41,233.34,29.92]
[1759752676888,1.69023903,233.39,233.3,25.06361475]
[1759752677201,0.72,233.38,233.31,30.6]
[1759752677506,0.72,233.38,233.31,29.92]
[1759752677676,0.72,233.38,233.32,0.68]
[1759752678278,4.28504092,233.37,233.32,0.68]
[1759752678606,4.28504092,233.37,233.33,0.69]
[1759752679416,4.28504092,233.37,233.31,29.92]
[1759752679713,0.66,233.36,233.31,29.92]
[1759752679888,4.28504092,233.37,233.32,0.69]
[1759752680215,4.94504092,233.37,233.32,0.69]
[1759752680522,4.28478985,233.39,233.33,0.69]
[1759752681392,71.56,233.44,233.33,0.69]
[1759752681705,4.28375599,233.44,233.34,10.87647521]
[1759752681905,4.28375599,233.44,233.35,0.69]
[1759752682107,4.28375599,233.44,233.36,40.81647521]
[1759752682405,0.66,233.48,233.38,4.28485731]
[1759752682581,0.66,233.48,233.39,0.69]
[1759752682582,0.66,233.47,233.39,0.69]
[1759752682994,4.2830221,233.48,233.39,0.69]
[1759752683401,4.9430221,233.48,233.39,0.69]
[1759752683790,15.65057735,233.48,233.39,4.97465366]
[1759752684000,0.66,233.47,233.4,0.69]
[1759752686017,4.28338901,233.46,233.4,0.69]
[1759752688532,0.66,233.46,233.4,4.97444452]
[1759752688830,0.66,233.46,233.4,0.69]
[1759752690000,4.28357249,233.45,233.4,0.69]
[1759752690202,4.28357249,233.45,233.41,0.69]
[1759752690425,4.94357249,233.45,233.41,0.69]
[1759752691417,4.28357249,233.45,233.41,0.69]
[1759752691616,4.28357249,233.45,233.36,51.52930628]
[1759752691617,4.2830221,233.48,233.42,0.69]
[1759752692114,4.2830221,233.48,233.42,30.61]
[1759752692312,4.2830221,233.48,233.43,0.69]
[1759752692525,82.26633087,233.51,233.43,0.69]
[1759752692526,4.28265524,233.5,233.43,0.69]
[1759752693710,0.66,233.51,233.44,4.28375599]
[1759752694024,0.66,233.51,233.44,4.97375599]
[1759752694398,1.69023903,233.48,233.39,3.58361475]
[1759752694725,1.69023903,233.46,233.39,50.72]
[1759752694924,0.66,233.45,233.39,29.92]
[1759752695127,0.69,233.44,233.37,29.92]
[1759752695835,4.28393951,233.43,233.37,29.92]
[1759752696124,4.28393951,233.43,233.37,30.58]
[1759752698208,4.28393951,233.43,233.37,29.92]
[1759752698536,4.28393951,233.43,233.38,0.66]
[1759752698844,0.69,233.42,233.36,20.8]
[1759752699005,2.38023903,233.42,233.33,15.12008996]
[1759752699208,0.69,233.41,233.33,41.45647521]
[1759752699641,14.99378828,233.43,233.3,10.71556577]
[1759752699642,2.38023903,233.4,233.3,15.12008996]
[1759752699825,0.69,233.39,233.31,29.92]
[1759752700011,0.69,233.38,233.31,29.92]
[1759752700213,4.97502014,233.38,233.32,0.66]
[1759752701427,3.33763447,233.63,233.32,0.66]
[1759752701428,0.69,233.42,233.32,4.94594132]
[1759752701633,4.97413412,233.42,233.33,11.53647521]
[1759752701941,4.97413412,233.42,233.34,0.66]
[1759752702941,15.68444172,233.42,233.34,0.66]
[1759752703316,15.68444172,233.42,233.32,0.66]
[1759752703723,20.8,233.41,233.32,0.66]
[1759752704141,0.69,233.4,233.33,29.94]
[1759752704325,4.28467372,233.39,233.33,30.6]
[1759752705250,0.17906512,234.12,233.34,0.66]
[1759752705251,4.28428997,233.42,233.34,0.66]
[1759752705730,4.97428997,233.42,233.34,0.66]
[1759752706823,15.68459757,233.42,233.32,20.8]
[1759752707016,0.69,233.41,233.33,29.94]
[1759752707317,0.69,233.41,233.34,0.66]
[1759752707932,4.97430658,233.41,233.34,0.66]
[1759752708137,0.65,233.43,233.36,20.8]
[1759752708340,0.65,233.43,233.36,21.46]
[1759752708858,4.28412304,233.42,233.36,0.66]
[1759752709059,4.28412304,233.42,233.35,20.8]
[1759752709060,4.93412304,233.42,233.35,20.8]
[1759752709237,0.65,233.41,233.34,34.88546622]
[1759752709436,0.65,233.41,233.34,34.22546622]
[1759752709622,0.65,233.41,233.35,0.66]
[1759752711244,0.65,233.42,233.35,4.94535721]
[1759752712228,0.65,233.42,233.36,0.66]
[1759752714254,4.93416356,233.42,233.36,4.94514382]
[1759752714437,4.28388773,233.44,233.37,0.66]
[1759752715434,4.28388773,233.44,233.38,4.28485731]
[1759752715637,4.28388773,233.44,233.38,4.94485731]
[1759752716131,4.28388773,233.44,233.38,4.28485731]
[1759752716347,0.65,233.43,233.35,30.58]
[1759752716877,0.65,233.43,233.36,0.66]
[1759752718345,0.65,233.43,233.36,4.94522241]
[1759752718530,0.65,233.43,233.37,0.66]
[1759752720249,4.93402577,233.43,233.37,0.66]
[1759752722349,4.93402577,233.43,233.35,29.92]
[1759752722532,0.65,233.42,233.34,4.94557601]
[1759752722739,4.28402577,233.43,233.34,30.58]
[1759752722740,0.65,233.41,233.34,30.58]
[1759752722966,0.65,233.4,233.34,30.58]
[1759752723743,0.65,233.4,233.35,0.66]
[1759752723941,4.93402577,233.43,233.36,0.66]
[1759752724165,4.28402577,233.43,233.36,0.66]
[1759752725169,4.28402577,233.43,233.37,4.28504092]
[1759752725353,4.28402577,233.43,233.37,0.66]
[1759752725862,0.65,233.44,233.37,0.66]
[1759752727249,4.9337725,233.44,233.37,4.94487666]
[1759752727856,4.9337725,233.44,233.38,0.66]
[1759752728066,0.65,233.44,233.38,0.66]
[1759752729246,4.28376825,233.44,233.38,4.94471635]
[1759752729686,4.93376825,233.44,233.38,0.66]
[1759752730168,13.35055552,233.47,233.38,4.94485486]
[1759752730169,21.45,233.47,233.38,4.94485486]
[1759752730379,0.65,233.47,233.39,0.66]
[1759752730547,29.92,233.51,233.4,29.92]
[1759752730744,0.65,233.49,233.41,0.66]
[1759752731266,4.93288587,233.49,233.42,4.28412304]
[1759752731569,0.65,233.49,233.43,0.66]
[1759752731874,20.8,233.51,233.43,0.66]
[1759752732252,21.45,233.51,233.43,0.66]
[1759752732770,4.28265524,233.5,233.44,4.28375599]
[1759752733069,4.28265524,233.5,233.44,4.94375599]
[1759752733454,4.93265524,233.5,233.44,0.66]
[1759752733770,4.93265524,233.5,233.42,29.92]
[1759752733949,0.65,233.49,233.42,29.92]
[1759752734145,0.65,233.49,233.42,30.58]
[1759752734453,0.65,233.49,233.43,0.66]
[1759752734862,4.9330103,233.49,233.43,0.66]
[1759752735555,4.9330103,233.49,233.42,29.92]
[1759752736078,0.65,233.48,233.42,29.92]
[1759752736567,4.28320555,233.47,233.42,29.92]
[1759752736773,4.28320555,233.47,233.43,0.66]
[1759752736961,4.28320555,233.47,233.44,0.66]
[1759752737371,4.28320555,233.47,233.42,34.20406733]
[1759752737574,4.28320555,233.47,233.43,0.66]
[1759752738275,14.98929335,233.5,233.43,0.66]
[1759752738578,4.96265524,233.5,233.43,4.94391492]
[1759752739072,4.96265524,233.5,233.44,0.66]
[1759752741079,4.96265524,233.5,233.44,4.94373412]
[1759752742178,25.76265524,233.5,233.44,4.94373412]
[1759752744184,25.76265524,233.5,233.44,0.66]
[1759752744488,20.8,233.49,233.44,0.66]
[1759752744663,20.8,233.49,233.44,4.94372747]
[1759752744857,21.48,233.49,233.44,4.94372747]
[1759752745079,0.68,233.48,233.43,29.92]
[1759752745287,0.68,233.47,233.4,4.24411307]
[1759752745480,0.68,233.46,233.41,33.50411307]
[1759752745674,0.68,233.45,233.41,30.58]
[1759752745987,4.28265524,233.5,233.41,30.58]
[1759752745988,4.28345076,233.46,233.42,0.66]
[1759752746155,4.96345076,233.46,233.42,0.66]
[1759752747362,65.6,233.51,233.41,34.20423397]
[1759752747589,66.28,233.51,233.43,0.66]
[1759752747879,66.28,233.51,233.44,4.28375599]
[1759752748079,0.68,233.51,233.45,0.66]
[1759752748395,0.68,233.54,233.47,10.87647521]
[1759752748556,0.68,233.56,233.48,0.66]
[1759752749377,0.68,233.56,233.48,4.24411307]
[1759752749584,0.68,233.56,233.49,4.94283866]
[1759752750287,0.68,233.56,233.5,0.66]
[1759752750679,4.96168056,233.56,233.5,4.94263752]
[1759752751188,0.68,233.56,233.5,4.28263752]
[1759752751399,0.68,233.56,233.51,0.66]
[1759752751760,0.1,233.58,233.51,29.92]
[1759752752089,0.68,233.57,233.51,29.92]
[1759752752266,0.68,233.56,233.51,29.92]
[1759752752467,0.68,233.56,233.51,30.58]
[1759752752879,4.28173838,233.55,233.51,30.58]
[1759752753472,4.96173838,233.55,233.51,30.58]
[1759752754077,4.96173838,233.55,233.46,3.58411307]
[1759752754078,0.68,233.54,233.46,3.58411307]
[1759752754278,0.68,233.53,233.44,33.50411307]
[1759752754583,0.68,233.52,233.44,30.58]
[1759752755088,0.68,233.52,233.45,0.66]
[1759752755974,4.28247184,233.51,233.45,0.66]
[1759752756665,4.96247184,233.51,233.45,0.66]
[1759752756868,15.66865144,233.51,233.44,29.92]
[1759752757084,0.68,233.5,233.44,29.92]
[1759752757390,0.68,233.49,233.44,29.92]
[1759752757788,0.68,233.48,233.44,29.92]
[1759752758096,4.28338901,233.46,233.44,29.92]
[1759752758902,0.68,233.45,233.4,24.38411307]
[1759752759095,0.68,233.45,233.4,0.66]
[1759752759884,0.68,233.45,233.39,33.50411307]
[1759752760204,4.96375599,233.44,233.39,29.92]
[1759752760390,4.28375599,233.44,233.39,30.58]
[1759752760594,4.96375599,233.44,233.39,30.58]
[1759752761118,0.68,233.43,233.39,29.92]
[1759752761281,0.68,233.42,233.39,29.92]
[1759752761603,0.68,233.41,233.36,4.24411307]
[1759752761786,0.68,233.4,233.35,33.50411307]
[1759752761989,0.68,233.4,233.36,0.66]
[1759752762192,4.28467372,233.39,233.36,0.66]
[1759752762794,4.28467372,233.39,233.35,33.50411307]
[1759752763008,4.28467372,233.39,233.35,34.16411307]
[1759752763306,4.28467372,233.39,233.35,30.58]
[1759752763698,4.28467372,233.39,233.35,0.66]
[1759752764292,4.28449014,233.4,233.35,0.66]
[1759752764494,4.96449014,233.4,233.35,0.66]
[1759752766505,0.68,233.39,233.34,3.58411307]
[1759752766702,0.68,233.38,233.33,3.58411307]
[1759752766898,0.68,233.37,233.33,3.58411307]
[1759752767100,0.68,233.36,233.33,3.58411307]
[1759752767484,0.68,233.39,233.34,0.66]
[1759752767808,0.68,233.38,233.34,0.66]
[1759752768309,2.64239088,233.41,233.34,0.66]
[1759752768310,14.99464107,233.42,233.34,0.66]
[1759752768607,4.28467372,233.39,233.33,4.23411307]
[1759752769681,20.8,233.41,233.34,0.65]
[1759752769883,4.98421913,233.42,233.34,4.23411307]
[1759752770098,4.98421913,233.42,233.35,0.65]
[1759752771442,4.28421913,233.42,233.35,4.93536975]
[1759752771721,4.28338901,233.46,233.37,3.58411307]
[1759752772010,0.7,233.45,233.38,0.65]
[1759752772181,0.7,233.45,233.37,33.50411307]
[1759752772182,3.34239088,233.45,233.37,29.92]
[1759752772490,0.7,233.44,233.37,29.92]
[1759752772691,2.64239088,233.45,233.37,29.92]
[1759752773002,4.28412304,233.42,233.37,29.92]
[1759752773208,4.98412304,233.42,233.37,30.57]
[1759752773598,4.98412304,233.42,233.38,0.65]
[1759752773917,4.28412304,233.42,233.38,0.65]
[1759752774608,4.28412304,233.42,233.39,0.65]
[1759752774816,4.28393951,233.43,233.39,0.65]
[1759752775002,4.28393951,233.43,233.4,0.65]
[1759752775686,20.8,233.47,233.41,0.65]
[1759752775687,4.28368006,233.45,233.41,0.65]
[1759752775903,4.28368006,233.45,233.42,0.65]
[1759752776211,4.28368006,233.45,233.4,0.65]
[1759752776514,4.98368006,233.45,233.41,0.65]
[1759752778512,65.6,233.48,233.39,10.87647521]
[1759752778703,4.28336859,233.47,233.42,0.65]
[1759752778904,0.7,233.46,233.4,4.23411307]
[1759752779916,4.983516,233.46,233.4,4.23411307]
[1759752780297,69.88320203,233.48,233.4,8.51858395]
[1759752780503,70.58320203,233.48,233.41,0.65]
[1759752781530,70.58320203,233.48,233.41,4.93429624]
[1759752782093,65.6,233.48,233.42,30.57]
[1759752782294,65.6,233.48,233.43,0.65]
[1759752782894,65.6,233.48,233.44,0.65]
[1759752783503,65.6,233.48,233.44,4.93374229]
[1759752783801,4.98267354,233.5,233.45,0.65]
[1759752784209,4.98267354,233.5,233.44,4.28374229]
[1759752784210,0.7,233.5,233.46,0.65]
[1759752784606,4.98273155,233.5,233.44,4.28374229]
[1759752784805,4.28273155,233.5,233.43,0.65]
[1759752785005,2.39057127,233.49,233.42,3.58411307]
[1759752785216,2.39057127,233.48,233.4,33.50411307]
[1759752785517,14.98936966,233.5,233.4,33.50411307]
[1759752785518,0.7,233.47,233.4,29.92]
[1759752785722,4.28338901,233.46,233.4,29.92]
[1759752786510,4.28338901,233.46,233.4,30.57]
[1759752786912,4.28338901,233.46,233.4,34.85447472]
[1759752787107,0.7,233.47,233.4,34.20447472]
[1759752787418,4.28318573,233.48,233.41,0.65]
[1759752787605,4.28318573,233.48,233.42,4.28412304]
[1759752787924,4.28318573,233.48,233.43,0.65]
[1759752788122,4.28318573,233.48,233.44,0.65]
[1759752788305,0.7,233.54,233.45,51.39]
[1759752788506,0.7,233.54,233.46,4.23411307]
[1759752788722,0.7,233.54,233.47,4.23411307]
[1759752789537,0.7,233.54,233.45,50.74]
[1759752789538,0.7,233.53,233.46,3.58411307]
[1759752789720,4.28247184,233.51,233.45,50.74]
[1759752789927,4.98247184,233.51,233.45,50.74]
[1759752790308,4.98247184,233.51,233.45,55.02356164]
[1759752790535,4.98247184,233.51,233.45,58.60767471]
[1759752791327,4.98247184,233.51,233.45,55.02356164]
[1759752791831,4.98247184,233.51,233.45,34.22357176]
[1759752792335,0.7,233.5,233.45,4.28357176]
[1759752792530,0.7,233.5,233.45,34.87357176]
[1759752792838,4.98272031,233.5,233.45,34.87357176]
[1759752793132,4.98272031,233.5,233.45,34.22357176]
[1759752793311,4.28241858,233.52,233.46,0.65]
[1759752793509,0.7,233.56,233.46,0.65]
[1759752794334,0.7,233.56,233.46,4.23411307]
[1759752794532,4.28192172,233.54,233.47,4.93320555]
[1759752794832,4.28192172,233.54,233.48,0.65]
[1759752796398,4.28192172,233.54,233.48,4.93290988]
[1759752796822,4.28146674,233.57,233.49,0.65]
[1759752797423,4.98146674,233.57,233.49,4.23411307]
[1759752797610,0.7,233.56,233.49,4.23411307]
[1759752797812,0.1,233.58,233.51,20.8]
[1759752797813,0.79,233.58,233.51,20.8]
[1759752798232,0.79,233.58,233.51,21.49]
[1759752798721,5.07123771,233.58,233.51,25.77238678]
[1759752799433,5.07123771,233.58,233.51,21.49]
[1759752800633,0.69,233.57,233.49,3.58411307]
[1759752800930,4.97155506,233.56,233.5,0.69]
[1759752801131,4.28139352,233.57,233.5,0.69]
[1759752803217,4.28139352,233.57,233.5,4.97247232]
[1759752803419,4.28139352,233.57,233.51,0.69]
[1759752804222,4.28139352,233.57,233.51,4.97246193]
[1759752804424,4.28139352,233.57,233.51,0.69]
[1759752804843,4.97139352,233.57,233.51,0.69]
[1759752806424,15.67482289,233.57,233.48,3.58411307]
[1759752806635,0.69,233.56,233.49,29.94]
[1759752806936,14.98482289,233.57,233.49,29.94]
[1759752806937,0.69,233.55,233.49,29.94]
[1759752808039,4.28192172,233.54,233.49,29.94]
[1759752808259,4.97192172,233.54,233.49,30.63]
[1759752808754,0.69,233.53,233.46,21.49]
[1759752809045,0.69,233.53,233.47,20.8]
[1759752809229,0.69,233.53,233.47,21.49]
[1759752809546,4.97158737,233.56,233.48,0.69]
[1759752809716,0.69,233.55,233.48,0.69]
[1759752810417,4.28192172,233.54,233.48,0.69]
[1759752811423,4.28137175,233.57,233.48,4.97299739]
[1759752811736,0.69,233.56,233.49,0.69]
[1759752812422,4.28173838,233.55,233.49,4.97278281]
[1759752812630,4.28173838,233.55,233.5,0.69]